fUST/lending_fUST_20240724
["ID","MTS","AMOUNT","RATE_DAILY","PERIOD"]
[333073845,1721831451317,-177.123886,0.00013698,2]
[333073846,1721831451327,-151.0,0.00013698,2]
[333073847,1721831451337,-177.123886,0.00013698,2]
[333073848,1721831451348,-151.0,0.00013698,2]
[333073849,1721831451358,-177.123886,0.00013698,2]
[333073850,1721831451370,-151.0,0.00013698,2]
[333073851,1721831451381,-177.123886,0.00013698,2]
[333073852,1721831451392,-177.123886,0.00013698,2]
[333073853,1721831451403,-151.0,0.00013698,2]
[333073854,1721831451413,-177.123886,0.00013698,2]
[333073855,1721831451424,-151.0,0.00013698,2]
[333073856,1721831451433,-1387.78,0.00013698,2]
[333073857,1721831451444,-177.123886,0.00013698,2]
[333073858,1721831451453,-151.0,0.00013698,2]
[333073859,1721831451464,-177.123886,0.00013698,2]
[333073860,1721831451479,-177.123886,0.00013698,2]
[333073861,1721831451489,-177.419971,0.00013698,2]
[333073862,1721831451500,-177.123886,0.00013698,2]
[333073863,1721831451511,-500.0,0.00013698,2]
[333073864,1721831451522,-500.0,0.00013698,2]
[333073865,1721831451533,-500.0,0.00013698,2]
[333073866,1721831451543,-177.123886,0.00013698,2]
[333073867,1721831451554,-177.123886,0.00013698,2]
[333073868,1721831451565,-177.123886,0.00013698,2]
[333073869,1721831451576,-177.123876,0.00013698,2]
[333073870,1721831451586,-500.0,0.00013698,2]
[333073871,1721831451596,-500.0,0.00013698,2]
[333073872,1721831451605,-720.56,0.00013698,2]
[333073873,1721831451614,-500.0,0.00013698,2]
[333073874,1721831451624,-513.42301202,0.00013698,2]
[333073875,1721831451633,-216.810221,0.00013698,2]
[333073876,1721831451642,-216.810221,0.00013698,2]
[333073877,1721831451652,-216.810221,0.00013698,2]
[333073878,1721831451662,-216.810221,0.00013698,2]
[333073879,1721831451674,-216.810221,0.00013698,2]
[333073880,1721831451684,-216.810221,0.00013698,2]
[333073881,1721831451693,-216.810221,0.00013698,2]
[333073882,1721831451703,-216.810221,0.00013698,2]
[333073883,1721831451712,-216.810221,0.00013698,2]
[333073884,1721831451721,-216.810221,0.00013698,2]
[333073885,1721831451732,-216.810221,0.00013698,2]
[333073886,1721831451744,-500.0,0.00013698,2]
[333073887,1721831451753,-216.810221,0.00013698,2]
[333073888,1721831451762,-216.810221,0.00013698,2]
[333073889,1721831451774,-216.810221,0.00013698,2]
[333073890,1721831451784,-510.37,0.00013698,2]
[333073891,1721831451795,-216.810221,0.00013698,2]
[333073892,1721831451804,-216.810221,0.00013698,2]
[333073893,1721831451815,-1269.87,0.00013698,2]
[333073894,1721831451824,-216.810221,0.00013698,2]
[333073895,1721831451835,-216.810221,0.00013698,2]
[333073896,1721831451846,-216.810221,0.00013698,2]
[333073897,1721831451857,-216.810217,0.00013698,2]
[333073898,1721831451868,-254.12370154,0.00013698,2]
[333073899,1721831451878,-500.0,0.00013698,2]
[333073900,1721831451888,-500.0,0.00013698,2]
[333073901,1721831451897,-346.11224575,0.00013698,2]
[333073902,1721831451908,-530.9713646,0.00013698,2]
[333073903,1721831451919,-506.317492,0.00013698,2]
[333073904,1721831451930,-1379.38,0.00013698,2]
[333073905,1721831451941,-151.0,0.00013698,2]
[333073906,1721831451953,-545.67,0.00013698,2]
[333073907,1721831451964,-323.22216477,0.00013698,2]
[333073908,1721831451975,-151.0,0.00013698,2]
[333073909,1721831451987,-151.0,0.00013698,2]
[333073910,1721831451997,-151.0,0.00013698,2]
[333073911,1721831452008,-151.0,0.00013698,2]
[333073912,1721831452018,-151.0,0.00013698,2]
[333073913,1721831452029,-151.0,0.00013698,2]
[333073914,1721831452040,-151.0,0.00013698,2]
[333073915,1721831452052,-151.0,0.00013698,2]
[333073916,1721831452062,-151.0,0.00013698,2]
[333073917,1721831452072,-500.0,0.00013698,2]
[333073918,1721831452081,-151.0,0.00013698,2]
[333073919,1721831452092,-229.299074,0.00013698,2]
[333073920,1721831452101,-229.299074,0.00013698,2]
[333073921,1721831452111,-151.0,0.00013698,2]
[333073922,1721831452120,-229.299074,0.00013698,2]
[333073923,1721831452130,-151.0,0.00013698,2]
[333073924,1721831452139,-151.0,0.00013698,2]
[333073925,1721831452149,-229.299074,0.00013698,2]
[333073926,1721831452158,-151.0,0.00013698,2]
[333073927,1721831452168,-229.299074,0.00013698,2]
[333073928,1721831452178,-229.299074,0.00013698,2]
[333073929,1721831452187,-151.0,0.00013698,2]
[333073930,1721831452196,-229.299074,0.00013698,2]
[333073931,1721831452206,-500.0,0.00013698,2]
[333073932,1721831452215,-229.299074,0.00013698,2]
[333073933,1721831452225,-151.0,0.00013698,2]
[333073934,1721831452238,-229.299074,0.00013698,2]
[333073935,1721831452247,-215.456253,0.00013698,2]
[333073936,1721831452257,-229.299074,0.00013698,2]
[333073937,1721831452268,-229.299074,0.00013698,2]
[333073938,1721831452277,-229.299074,0.00013698,2]
[333073939,1721831452286,-1082.53,0.00013698,2]
[333073940,1721831452295,-229.299074,0.00013698,2]
[333073941,1721831452304,-229.299074,0.00013698,2]
[333073942,1721831452314,-229.299074,0.00013698,2]
[333073943,1721831452323,-229.299074,0.00013698,2]
[333073944,1721831452332,-229.299074,0.00013698,2]
[333073945,1721831452341,-229.299074,0.00013698,2]
[333073946,1721831452351,-500.0,0.00013698,2]
[333073947,1721831452360,-229.299074,0.00013698,2]
[333073948,1721831452369,-168.287374,0.00013698,2]
[333073949,1721831452379,-229.299076,0.00013698,2]
[333073950,1721831452388,-500.0,0.00013698,2]
[333073951,1721831452399,-500.0,0.00013698,2]
[333073952,1721831452408,-500.0,0.00013698,2]
[333073953,1721831452417,-500.0,0.00013698,2]
[333073954,1721831452427,-500.0,0.00013698,2]
[333073955,1721831452437,-775.74,0.00013698,2]
[333073956,1721831452447,-3451.2,0.00013698,2]
[333073957,1721831452457,-500.0,0.00013698,2]
[333073958,1721831452467,-500.0,0.00013698,2]
[333073959,1721831452477,-500.0,0.00013698,2]
[333073960,1721831452487,-500.0,0.00013698,2]
[333073961,1721831452496,-500.0,0.00013698,2]
[333073962,1721831452506,-500.0,0.00013698,2]
[333073963,1721831452516,-500.0,0.00013698,2]
[333073964,1721831452526,-500.0,0.00013698,2]
[333073965,1721831452535,-5184.24,0.00013698,2]
[333073966,1721831452545,-500.0,0.00013698,2]
[333073967,1721831452555,-500.0,0.00013698,2]
[333073968,1721831452565,-500.0,0.00013698,2]
[333073969,1721831452574,-500.0,0.00013698,2]
[333073970,1721831452584,-500.0,0.00013698,2]
[333073971,1721831452596,-500.0,0.00013698,2]
[333073972,1721831452607,-500.0,0.00013698,2]
[333073973,1721831452618,-500.0,0.00013698,2]
[333073974,1721831452629,-500.0,0.00013698,2]
[333073975,1721831452641,-500.0,0.00013698,2]
[333073976,1721831452651,-500.0,0.00013698,2]
[333073977,1721831452663,-570.39,0.00013698,2]
[333073978,1721831452674,-1001.35,0.00013698,2]
[333073979,1721831452685,-500.0,0.00013698,2]
[333073980,1721831452695,-500.0,0.00013698,2]
[333073981,1721831452707,-500.0,0.00013698,2]
[333073982,1721831452718,-500.0,0.00013698,2]
[333073983,1721831452731,-500.0,0.00013698,2]
[333073984,1721831452742,-851.09,0.00013698,2]
[333073985,1721831452751,-478.97356076,0.00013698,2]
[333073986,1721831452760,-641.95,0.00013698,2]
[333073987,1721831452770,-500.0,0.00013698,2]
[333073988,1721831452779,-2022.25,0.00013698,2]
[333073989,1721831452788,-500.0,0.00013698,2]
[333073990,1721831452797,-1256.11,0.00013698,2]
[333073991,1721831452806,-500.0,0.00013698,2]
[333073992,1721831452816,-500.0,0.00013698,2]
[333073993,1721831452827,-4648.36,0.00013698,2]
[333073994,1721831452840,-500.0,0.00013698,2]
[333073995,1721831452852,-500.0,0.00013698,2]
[333073996,1721831452862,-500.0,0.00013698,2]
[333073997,1721831452871,-3189.43,0.00013698,2]
[333073998,1721831452881,-500.0,0.00013698,2]
[333073999,1721831452894,-500.0,0.00013698,2]
[333074000,1721831452905,-2322.12,0.00013698,2]
[333074001,1721831452915,-2234.89,0.00013698,2]
[333074002,1721831452926,-500.0,0.00013698,2]
[333074003,1721831452939,-577.52,0.00013698,2]
[333074004,1721831452949,-5229.65,0.00013698,2]
[333074005,1721831452960,-151.0,0.00013698,2]
[333074006,1721831452971,-201.508359,0.00013698,2]
[333074007,1721831452983,-571.13696152,0.00013698,2]
[333074008,1721831452994,-500.0,0.00013698,2]
[333074009,1721831453003,-470.27925151,0.00013698,2]
[333074010,1721831453012,-2013.02,0.00013698,2]
[333074011,1721831453024,-151.0,0.00013698,2]
[333074012,1721831453041,-874.86,0.00013698,2]
[333074013,1721831453051,-151.0,0.00013698,2]
[333074014,1721831453060,-151.0,0.00013698,2]
[333074015,1721831453069,-151.0,0.00013698,2]
[333074016,1721831453082,-151.0,0.00013698,2]
[333074017,1721831453091,-151.0,0.00013698,2]
[333074018,1721831453102,-151.0,0.00013698,2]
[333074019,1721831453120,-5195.88,0.00013698,2]
[333074020,1721831453130,-151.0,0.00013698,2]
[333074021,1721831453139,-151.0,0.00013698,2]
[333074022,1721831453148,-9528.49,0.00013698,2]
[333074023,1721831453157,-151.0,0.00013698,2]
[333074024,1721831453166,-151.0,0.00013698,2]
[333074025,1721831453175,-151.0,0.00013698,2]
[333074026,1721831453184,-151.0,0.00013698,2]
[333074027,1721831453320,-151.0,0.00013698,2]
[333074028,1721831453347,-2262.84685236,0.00013698,2]
[333074029,1721831453359,-151.0,0.00013698,2]
[333074030,1721831453369,-151.0,0.00013698,2]
[333074031,1721831453381,-151.0,0.00013698,2]
[333074032,1721831453391,-151.0,0.00013698,2]
[333074033,1721831453402,-151.0,0.00013698,2]
[333074034,1721831453412,-151.0,0.00013698,2]
[333074035,1721831453422,-500.0,0.00013698,2]
[333074036,1721831453433,-151.0,0.00013698,2]
[333074037,1721831453444,-500.0,0.00013698,2]
[333074038,1721831453454,-151.0,0.00013698,2]
[333074039,1721831453464,-151.0,0.00013698,2]
[333074040,1721831453476,-151.0,0.00013698,2]
[333074041,1721831453487,-500.0,0.00013698,2]
[333074042,1721831453498,-151.0,0.00013698,2]
[333074043,1721831453509,-500.0,0.00013698,2]
[333074044,1721831453519,-151.0,0.00013698,2]
[333074045,1721831453530,-151.0,0.00013698,2]
[333074046,1721831453541,-151.0,0.00013698,2]
[333074047,1721831453552,-280.5175,0.00013698,2]
[333074048,1721831453562,-151.0,0.00013698,2]
[333074049,1721831453574,-292.961444,0.00013698,2]
[333074050,1721831453584,-154.11730117,0.00013698,2]
[333074051,1721831453594,-500.0,0.00013698,2]
[333074052,1721831453604,-500.0,0.00013698,2]
[333074053,1721831453615,-500.0,0.00013698,2]
[333074054,1721831453624,-500.0,0.00013698,2]
[333074055,1721831453634,-500.0,0.00013698,2]
[333074056,1721831453644,-500.0,0.00013698,2]
[333074057,1721831453654,-500.0,0.00013698,2]
[333074058,1721831453665,-648.51,0.00013698,2]
[333074059,1721831453676,-500.0,0.00013698,2]
[333074060,1721831453686,-2760.078386,0.00013698,2]
[333074061,1721831453695,-2760.078386,0.00013698,2]
[333074062,1721831453706,-2760.078386,0.00013698,2]
[333074063,1721831453716,-2760.078386,0.00013698,2]
[333074064,1721831453725,-607.408834,0.00013698,2]
[333074065,1721831453739,-607.408834,0.00013698,2]
[333074066,1721831453749,-2760.078386,0.00013698,2]
[333074067,1721831453759,-824.56,0.00013698,2]
[333074068,1721831453771,-607.408834,0.00013698,2]
[333074069,1721831453781,-607.408834,0.00013698,2]
[333074070,1721831453790,-2760.078386,0.00013698,2]
[333074071,1721831453800,-607.408834,0.00013698,2]
[333074072,1721831453810,-2760.078386,0.00013698,2]
[333074073,1721831453821,-607.408834,0.00013698,2]
[333074074,1721831453832,-2760.078386,0.00013698,2]
[333074075,1721831453843,-607.408834,0.00013698,2]
[333074076,1721831453852,-781.15,0.00013698,2]
[333074077,1721831453862,-2760.078386,0.00013698,2]
[333074078,1721831453872,-500.0,0.00013698,2]
[333074079,1721831453883,-2760.078386,0.00013698,2]
[333074080,1721831453895,-15950.48,0.00013698,2]
[333074081,1721831453905,-2760.078386,0.00013698,2]
[333074082,1721831453915,-500.0,0.00013698,2]
[333074083,1721831453926,-2760.078386,0.00013698,2]
[333074084,1721831453937,-2760.078386,0.00013698,2]
[333074085,1721831453949,-2760.078386,0.00013698,2]
[333074086,1721831453962,-2760.078386,0.00013698,2]
[333074087,1721831453972,-2760.078386,0.00013698,2]
[333074088,1721831453986,-607.408834,0.00013698,2]
[333074089,1721831453995,-2760.078386,0.00013698,2]
[333074090,1721831454006,-607.408834,0.00013698,2]
[333074091,1721831454016,-2760.078386,0.00013698,2]
[333074092,1721831454025,-607.408834,0.00013698,2]
[333074093,1721831454035,-1284.401504,0.00013698,2]
[333074094,1721831454046,-607.408834,0.00013698,2]
[333074095,1721831454057,-1284.401504,0.00013698,2]
[333074096,1721831454067,-500.0,0.00013698,2]
[333074097,1721831454077,-607.408834,0.00013698,2]
[333074098,1721831454087,-1284.401504,0.00013698,2]
[333074099,1721831454097,-500.0,0.00013698,2]
[333074100,1721831454106,-2760.078386,0.00013698,2]
[333074101,1721831454116,-607.408834,0.00013698,2]
[333074102,1721831454125,-1284.401504,0.00013698,2]
[333074103,1721831454134,-2760.078392,0.00013698,2]
[333074104,1721831454144,-1284.401504,0.00013698,2]
[333074105,1721831454154,-1284.401504,0.00013698,2]
[333074106,1721831454164,-2159.0,0.00013698,2]
[333074107,1721831454173,-1284.401504,0.00013698,2]
[333074108,1721831454183,-527.81,0.00013698,2]
[333074109,1721831454192,-1284.401504,0.00013698,2]
[333074110,1721831454202,-607.408834,0.00013698,2]
[333074111,1721831454212,-607.408834,0.00013698,2]
[333074112,1721831454222,-1284.401504,0.00013698,2]
[333074113,1721831454234,-500.0,0.00013698,2]
[333074114,1721831454244,-607.408834,0.00013698,2]
[333074115,1721831454253,-1337.52,0.00013698,2]
[333074116,1721831454262,-1284.401504,0.00013698,2]
[333074117,1721831454272,-607.408834,0.00013698,2]
[333074118,1721831454281,-1284.401504,0.00013698,2]
[333074119,1721831454292,-607.408834,0.00013698,2]
[333074120,1721831454301,-7478.38,0.00013698,2]
[333074121,1721831454311,-151.0,0.00013698,2]
[333074122,1721831454321,-1284.401504,0.00013698,2]
[333074123,1721831454331,-607.408834,0.00013698,2]
[333074124,1721831454340,-1284.401504,0.00013698,2]
[333074125,1721831454350,-607.408836,0.00013698,2]
[333074126,1721831454359,-1284.401504,0.00013698,2]
[333074127,1721831454369,-1284.401504,0.00013698,2]
[333074128,1721831454379,-1284.401504,0.00013698,2]
[333074129,1721831454390,-1284.401504,0.00013698,2]
[333074130,1721831454401,-1284.401504,0.00013698,2]
[333074131,1721831454412,-500.0,0.00013698,2]
[333074132,1721831454425,-500.0,0.00013698,2]
[333074133,1721831454436,-1284.401504,0.00013698,2]
[333074134,1721831454446,-1284.401499,0.00013698,2]
[333074135,1721831454456,-661.027295,0.00013698,2]
[333074136,1721831454465,-500.0,0.00013698,2]
[333074137,1721831454478,-661.027295,0.00013698,2]
[333074138,1721831454488,-503.47695568,0.00013698,2]
[333074139,1721831454498,-661.027295,0.00013698,2]
[333074140,1721831454508,-5088.23,0.00013698,2]
[333074141,1721831454519,-661.027295,0.00013698,2]
[333074142,1721831454530,-661.027295,0.00013698,2]
[333074143,1721831454541,-661.027295,0.00013698,2]
[333074144,1721831454551,-661.027295,0.00013698,2]
[333074145,1721831454561,-661.027295,0.00013698,2]
[333074146,1721831454571,-661.027295,0.00013698,2]
[333074147,1721831454581,-661.027295,0.00013698,2]
[333074148,1721831454591,-500.0,0.00013698,2]
[333074149,1721831454603,-661.027295,0.00013698,2]
[333074150,1721831454615,-3430.42,0.00013698,2]
[333074151,1721831454624,-500.0,0.00013698,2]
[333074152,1721831454634,-3220.93,0.00013698,2]
[333074153,1721831454646,-661.027295,0.00013698,2]
[333074154,1721831454659,-500.0,0.00013698,2]
[333074155,1721831454672,-661.027295,0.00013698,2]
[333074156,1721831454682,-661.027295,0.00013698,2]
[333074157,1721831454691,-661.027295,0.00013698,2]
[333074158,1721831454703,-500.0,0.00013698,2]
[333074159,1721831454713,-661.027295,0.00013698,2]
[333074160,1721831454724,-500.0,0.00013698,2]
[333074161,1721831454735,-661.027295,0.00013698,2]
[333074162,1721831454746,-661.027295,0.00013698,2]
[333074163,1721831454756,-661.027295,0.00013698,2]
[333074164,1721831454766,-661.027286,0.00013698,2]
[333074165,1721831454776,-500.0,0.00013698,2]
[333074166,1721831454787,-1828.17,0.00013698,2]
[333074167,1721831454796,-3559.24,0.00013698,2]
[333074168,1721831454805,-789.03,0.00013698,2]
[333074169,1721831454816,-189.09951702,0.00013698,2]
[333074170,1721831454826,-500.0,0.00013698,2]
[333074171,1721831454836,-500.0,0.00013698,2]
[333074172,1721831454846,-1813.95,0.00013698,2]
[333074173,1721831454856,-12210.93,0.00013698,2]
[333074174,1721831454865,-703.94,0.00013698,2]
[333074175,1721831454876,-643.74210125,0.00013698,2]
[333074176,1721831454887,-500.0,0.00013698,2]
[333074177,1721831454897,-687.09,0.00013698,2]
[333074178,1721831454908,-500.0,0.00013698,2]
[333074179,1721831454919,-620.894105,0.00013698,2]
[333074180,1721831454930,-620.894105,0.00013698,2]
[333074181,1721831454940,-4237.85,0.00013698,2]
[333074182,1721831454950,-500.0,0.00013698,2]
[333074183,1721831454960,-620.894105,0.00013698,2]
[333074184,1721831454970,-620.894105,0.00013698,2]
[333074185,1721831454983,-620.894105,0.00013698,2]
[333074186,1721831454993,-912.41,0.00013698,2]
[333074187,1721831455004,-620.894105,0.00013698,2]
[333074188,1721831455013,-620.894105,0.00013698,2]
[333074189,1721831455023,-620.894105,0.00013698,2]
[333074190,1721831455034,-620.894105,0.00013698,2]
[333074191,1721831455045,-2938.650204,0.00013698,2]
[333074192,1721831455056,-620.894105,0.00013698,2]
[333074193,1721831455066,-500.0,0.00013698,2]
[333074194,1721831455077,-2938.650204,0.00013698,2]
[333074195,1721831455089,-503.35941299,0.00013698,2]
[333074196,1721831455100,-620.894105,0.00013698,2]
[333074197,1721831455112,-620.894105,0.00013698,2]
[333074198,1721831455123,-620.894105,0.00013698,2]
[333074199,1721831455133,-2938.650204,0.00013698,2]
[333074200,1721831455144,-2938.650204,0.00013698,2]
[333074201,1721831455154,-1075.24,0.00013698,2]
[333074202,1721831455163,-2938.650204,0.00013698,2]
[333074203,1721831455175,-2938.650204,0.00013698,2]
[333074204,1721831455185,-2938.650204,0.00013698,2]
[333074205,1721831455199,-620.894105,0.00013698,2]
[333074206,1721831455213,-620.894105,0.00013698,2]
[333074207,1721831455229,-2938.650204,0.00013698,2]
[333074208,1721831455244,-620.894105,0.00013698,2]
[333074209,1721831455258,-620.894105,0.00013698,2]
[333074210,1721831455271,-500.0,0.00013698,2]
[333074211,1721831455285,-500.0,0.00013698,2]
[333074212,1721831455300,-500.0,0.00013698,2]
[333074213,1721831455313,-620.894105,0.00013698,2]
[333074214,1721831455326,-2938.650204,0.00013698,2]
[333074215,1721831455340,-620.894105,0.00013698,2]
[333074216,1721831455356,-2938.650204,0.00013698,2]
[333074217,1721831455369,-620.894113,0.00013698,2]
[333074218,1721831455382,-1606.5,0.00013698,2]
[333074219,1721831455395,-2938.650204,0.00013698,2]
[333074220,1721831455411,-2938.650204,0.00013698,2]
[333074221,1721831455423,-500.0,0.00013698,2]
[333074222,1721831455435,-2938.650204,0.00013698,2]
[333074223,1721831455446,-1001.82837154,0.00013698,2]
[333074224,1721831455754,-1936.82183246,0.00013698,2]
[333074225,1721831455767,-548.54,0.00013698,2]
[333074226,1721831455778,-7018.7,0.00013698,2]
[333074227,1721831455790,-2938.650204,0.00013698,2]
[333074228,1721831455803,-2938.650204,0.00013698,2]
[333074229,1721831455815,-500.0,0.00013698,2]
[333074230,1721831455826,-2938.650204,0.00013698,2]
[333074231,1721831455837,-500.0,0.00013698,2]
[333074232,1721831455849,-2119.46,0.00013698,2]
[333074233,1721831455861,-500.0,0.00013698,2]
[333074234,1721831455874,-2938.650204,0.00013698,2]
[333074235,1721831455886,-2938.650204,0.00013698,2]
[333074236,1721831455898,-2128.85783664,0.00013698,2]
[333074240,1721831531063,200.0,0.0001,2]
[333074241,1721831531114,354.62839194,0.0001137,2]
[333074242,1721831531137,45.37160806,0.0001137,2]
[333074250,1721832352113,-253.13368046,9.999e-05,2]
[333074251,1721832425111,-218.38616371,9.999e-05,2]
[333074252,1721832425132,-154.72922386,9.999e-05,2]
[333074253,1721832425155,-164.21149416,9.999e-05,2]
[333074254,1721832425176,-154.72922386,9.999e-05,2]
[333074255,1721832425197,-154.72922386,9.999e-05,2]
[333074256,1721832425221,-301.13586327,9.999e-05,2]
[333074257,1721832425244,-200.0,0.0001,2]
[333074258,1721832425265,-37.6322586,0.0001137,2]
[333074259,1721832435096,-362.3677414,0.0001137,2]
[333074260,1721832435119,-1068.1254994,0.00012331,2]
[333074261,1721832449130,-208.7158099,0.00012331,2]
[333074262,1721832449155,-169.732409,0.00012512,2]
[333074263,1721832449177,-169.732409,0.00012546,2]
[333074264,1721832449198,-169.732409,0.00012581,2]
[333074265,1721832449221,-169.732409,0.00012615,2]
[333074266,1721832449243,-8.39353895,0.00012649,2]
[333074267,1721832452104,-161.33887005,0.00012649,2]
[333074268,1721832452129,-169.732409,0.00012684,2]
[333074269,1721832452155,-169.732409,0.00012718,2]
[333074270,1721832452179,-169.732409,0.00012752,2]
[333074271,1721832452201,-41.62656495,0.00012787,2]
[333074272,1721832452235,-128.10584405,0.00012787,2]
[333074273,1721832452261,-169.732409,0.00012821,2]
[333074274,1721832452288,-169.732409,0.00012855,2]
[333074275,1721832452316,-169.732409,0.0001289,2]
[333074276,1721832452342,-300.0,0.00012899,2]
[333074277,1721832452366,-153.0,0.000129,2]
[333074278,1721832452390,-153.0,0.000129,2]
[333074279,1721832452416,-169.732409,0.00012924,2]
[333074280,1721832452440,-169.732409,0.00012958,2]
[333074281,1721832452464,-169.732409,0.00012993,2]
[333074282,1721832452489,-169.732409,0.00013027,2]
[333074283,1721832452514,-169.732409,0.00013061,2]
[333074284,1721832452539,-169.732409,0.00013096,2]
[333074285,1721832452564,-169.732409,0.0001313,2]
[333074286,1721832452587,-600.0,0.00013147,2]
[333074287,1721832452613,-169.732409,0.00013164,2]
[333074288,1721832452638,-171.301767,0.00013179,2]
[333074289,1721832452661,-165.2968,0.00013179,2]
[333074290,1721832452683,-153.0,0.00013252,2]
[333074291,1721832452705,-153.0,0.0001326,2]
[333074292,1721832452726,-2879.13578404,0.000133,2]
[333074293,1721832452748,-200.0,0.00013425,2]
[333074294,1721832452769,-5304.84073988,0.00013475,2]
[333074295,1721832452791,-334.9030528,0.00013577,2]
[333074296,1721832452814,-2000.0,0.00013598,2]
[333074297,1721832452837,-200.0,0.00013598,2]
[333074298,1721832452861,-3000.0,0.000136,30]
[333074299,1721832452884,-3000.0,0.0001361,30]
[333074300,1721832452909,-3000.0,0.0001362,30]
[333074301,1721832452931,-3000.0,0.0001363,30]
[333074302,1721832452954,-3000.0,0.0001364,30]
[333074303,1721832452978,-3000.0,0.0001365,30]
[333074304,1721832453002,-3000.0,0.0001366,30]
[333074305,1721832453025,-4159.36188,0.0001367,30]
[333074306,1721832453049,-2860.16306786,0.00013698,2]
[333074307,1721832453073,-500.0,0.00013698,2]
[333074308,1721832453099,-500.0,0.00013698,2]
[333074309,1721832453120,-500.0,0.00013698,2]
[333074310,1721832453146,-500.0,0.00013698,2]
[333074311,1721832453171,-500.0,0.00013698,2]
[333074312,1721832453195,-500.0,0.00013698,2]
[333074313,1721832453218,-500.0,0.00013698,2]
[333074314,1721832453243,-500.0,0.00013698,2]
[333074315,1721832453268,-500.0,0.00013698,2]
[333074316,1721832453291,-500.0,0.00013698,2]
[333074317,1721832453316,-460.56126532,0.00013698,2]
[333074318,1721832453338,-500.0,0.00013698,2]
[333074319,1721832453360,-500.0,0.00013698,2]
[333074320,1721832453382,-500.0,0.00013698,2]
[333074321,1721832453403,-500.0,0.00013698,2]
[333074322,1721832453425,-500.0,0.00013698,2]
[333074323,1721832453448,-500.0,0.00013698,2]
[333074324,1721832453469,-509.97591577,0.00013698,2]
[333074325,1721832453497,-500.0,0.00013698,2]
[333074326,1721832453520,-510.52,0.00013698,2]
[333074327,1721832453545,-500.0,0.00013698,2]
[333074328,1721832453570,-500.0,0.00013698,2]
[333074329,1721832453596,-449.45052723,0.00013698,2]
[333074330,1721832453618,-500.0,0.00013698,2]
[333074331,1721832453640,-755.84,0.00013698,2]
[333074332,1721832453661,-500.0,0.00013698,2]
[333074333,1721832453684,-500.0,0.00013698,2]
[333074334,1721832453707,-731.62,0.00013698,2]
[333074335,1721832453729,-500.0,0.00013698,2]
[333074336,1721832453752,-500.0,0.00013698,2]
[333074337,1721832453776,-500.0,0.00013698,2]
[333074338,1721832453800,-503.66490958,0.00013698,2]
[333074339,1721832453822,-500.0,0.00013698,2]
[333074340,1721832453844,-2358.34,0.00013698,2]
[333074341,1721832453868,-500.0,0.00013698,2]
[333074342,1721832453890,-519.10231475,0.00013698,2]
[333074343,1721832453915,-500.0,0.00013698,2]
[333074344,1721832453939,-500.0,0.00013698,2]
[333074345,1721832453965,-500.0,0.00013698,2]
[333074346,1721832453988,-500.0,0.00013698,2]
[333074347,1721832454012,-500.0,0.00013698,2]
[333074348,1721832454037,-500.0,0.00013698,2]
[333074349,1721832454063,-500.0,0.00013698,2]
[333074350,1721832454085,-500.0,0.00013698,2]
[333074351,1721832454107,-500.0,0.00013698,2]
[333074352,1721832454129,-500.0,0.00013698,2]
[333074353,1721832454155,-500.0,0.00013698,2]
[333074354,1721832454178,-500.0,0.00013698,2]